bitfinex/quotes_SOLUSD_20240604
["timestamp","ask_amount","ask_price","bid_price","bid_amount"]
[1717518653841,2.1918,168.81,168.74,120.0]
[1717518654138,16.5478,168.84,168.72,512.19879644]
[1717518654313,2.1918,168.81,168.72,512.19879644]
[1717518654521,2.1919,168.8,168.72,512.19879644]
[1717518654940,2.1919,168.8,168.72,392.19879644]
[1717518655252,16.5478,168.84,168.75,122.1925]
[1717518656237,2.1911,168.87,168.76,2.5324]
[1717518656552,25.7811,168.87,168.77,120.0]
[1717518656749,2.1913,168.85,168.77,120.0]
[1717518657511,23.59,168.87,168.74,122.1926]
[1717518657512,2.1915,168.83,168.74,122.1926]
[1717518657744,2.1915,168.83,168.74,120.0]
[1717518658126,2.1915,168.83,168.74,122.1927]
[1717518658327,2.1914,168.84,168.74,122.1927]
[1717518658844,2.1914,168.84,168.75,0.34]
[1717518659022,2.1915,168.83,168.75,0.34]
[1717518659544,2.1917,168.82,168.75,0.34]
[1717518659747,23.59,168.83,168.72,502.4929]
[1717518659934,2.1925,168.75,168.68,0.8368525]
[1717518660441,22.4932,168.76,168.68,0.8368525]
[1717518660944,2.1926,168.75,168.68,0.8368525]
[1717518661320,6.4662,168.76,168.69,120.0]
[1717518661521,8.6586,168.76,168.69,120.0]
[1717518661863,2.1926,168.75,168.68,0.8368525]
[1717518662159,2.1927,168.74,168.68,0.8368525]
[1717518662730,2.1926,168.75,168.68,0.8368525]
[1717518663125,2.1928,168.74,168.68,0.8368525]
[1717518663443,6.6547,168.72,168.68,0.8368525]
[1717518663744,15.5911,168.73,168.68,0.8368525]
[1717518663745,6.6547,168.71,168.68,0.8368525]
[1717518664041,6.6547,168.7,168.68,0.8368525]
[1717518665038,2.1931,168.71,168.68,0.8368525]
[1717518665244,8.7351,168.69,168.68,0.8368525]
[1717518665545,23.8577,168.69,168.68,0.8368525]
[1717518665718,21.6644,168.69,168.68,0.8368525]
[1717518665914,6.5418,168.69,168.68,0.8368525]
[1717518666345,23.887,168.69,168.68,0.8368525]
[1717518666847,21.6937,168.69,168.68,0.8368525]
[1717518667232,23.887,168.69,168.68,0.8368525]
[1717518669652,8.7351,168.69,168.68,0.8368525]
[1717518669830,29.0051,168.69,168.68,0.8368525]
[1717518670151,44.7767,168.69,168.68,0.8368525]
[1717518671750,29.0051,168.69,168.68,0.8368525]
[1717518672259,20.27,168.69,168.68,0.8368525]
[1717518673225,22.4633,168.69,168.68,0.8368525]
[1717518673428,28.8905,168.69,168.68,0.8368525]
[1717518673936,26.6972,168.69,168.68,0.8368525]
[1717518674852,20.27,168.69,168.68,0.8368525]
[1717518678560,20.27,168.71,168.68,0.8368525]
[1717518678735,20.27,168.71,168.68,120.8368525]
[1717518679080,20.27,168.74,168.68,120.8368525]
[1717518679374,20.27,168.74,168.69,0.17]
[1717518680250,20.27,168.74,168.69,0.34]
[1717518680562,20.27,168.74,168.69,2.5332]
[1717518680742,20.27,168.77,168.72,120.0]
[1717518680939,20.27,168.77,168.73,0.17]
[1717518681150,2.192,168.79,168.73,0.34]
[1717518681337,2.1922,168.78,168.73,0.34]
[1717518681542,2.1922,168.78,168.73,0.17]
[1717518681759,2.1921,168.79,168.72,0.34]
[1717518682158,20.27,168.8,168.72,0.34]
[1717518682467,20.27,168.77,168.72,0.34]
[1717518682662,20.27,168.77,168.7,20.0]
[1717518682963,22.4624,168.77,168.69,120.34]
[1717518683138,2.1925,168.76,168.69,120.34]
[1717518683477,20.27,168.8,168.68,3.0302525]
[1717518683478,20.27,168.74,168.68,0.8368525]
[1717518683643,20.27,168.71,168.68,0.8368525]
[1717518684058,2.1932,168.7,168.68,0.8368525]
[1717518684559,22.4631,168.71,168.68,0.8368525]
[1717518684764,28.6468,168.71,168.68,0.8368525]
[1717518685660,26.4537,168.71,168.68,0.8368525]
[1717518686270,22.4631,168.71,168.68,0.8368525]
[1717518687072,8.4651,168.7,168.68,0.8368525]
[1717518687564,35.5392,168.71,168.68,0.8368525]
[1717518687565,8.4652,168.69,168.68,0.8368525]
[1717518687767,2.1932,168.7,168.68,0.8368525]
[1717518688281,8.4651,168.7,168.68,0.8368525]
[1717518688571,2.1933,168.69,168.68,0.8368525]
[1717518689155,8.6601,168.69,168.68,0.8368525]
[1717518690037,2.1939,168.65,168.58,2.1947]
[1717518690239,20.27,168.65,168.6,120.0]
[1717518690472,20.27,168.65,168.58,142.1947]
[1717518691054,20.27,168.65,168.59,2.1946]
[1717518691353,20.27,168.65,168.58,142.1947]
[1717518691567,20.27,168.65,168.58,122.1947]
[1717518692154,20.27,168.65,168.59,0.17]
[1717518692575,22.4638,168.65,168.59,0.34]
[1717518692890,20.27,168.65,168.59,2.5345]
[1717518693174,20.27,168.65,168.6,2.1945]
[1717518693383,20.27,168.68,168.61,122.5343]
[1717518693680,20.27,168.68,168.63,120.0]
[1717518693849,20.27,168.68,168.62,2.5342]
[1717518695854,18.27,168.68,168.62,0.34]
[1717518696249,20.4635,168.68,168.62,0.34]
[1717518696445,2.1936,168.67,168.62,0.34]
[1717518696673,20.4635,168.68,168.61,0.17]
[1717518696852,20.4635,168.68,168.61,0.34]
[1717518697473,2.1936,168.67,168.61,0.34]
[1717518697854,2.1936,168.67,168.61,0.17]
[1717518698176,20.4635,168.68,168.61,2.3644]
[1717518698476,18.27,168.68,168.61,122.3644]
[1717518698662,18.27,168.68,168.61,120.17]
[1717518698977,18.27,168.68,168.62,2.1942]
[1717518699676,18.27,168.68,168.59,120.0]
[1717518699858,2.1937,168.66,168.6,0.34]
[1717518700373,2.1936,168.67,168.6,0.34]
[1717518700556,20.27,168.65,168.58,2.1947]
[1717518701362,20.27,168.65,168.59,2.1946]
[1717518702169,20.27,168.65,168.57,2.1948]
[1717518702369,2.1941,168.64,168.56,22.195]
[1717518702905,2.1941,168.63,168.56,22.1949]
[1717518703062,6.1265,168.67,168.59,120.0]
[1717518703257,26.3965,168.67,168.59,120.0]
[1717518703587,26.3965,168.67,168.61,2.1943]
[1717518704382,20.27,168.64,168.57,122.1948]
[1717518704578,20.27,168.64,168.56,20.0]
[1717518704579,22.4641,168.64,168.58,0.17]
[1717518704753,20.27,168.64,168.57,122.5349]
[1717518704953,20.27,168.64,168.58,2.1948]
[1717518705358,20.27,168.64,168.59,120.0]
[1717518705561,20.27,168.64,168.59,2.1946]
[1717518705769,20.27,168.64,168.57,122.3649]
[1717518705970,20.27,168.64,168.59,120.0]
[1717518706165,20.27,168.64,168.59,122.1946]
[1717518706370,20.27,168.64,168.58,2.3647]
[1717518706564,20.27,168.64,168.59,122.3646]
[1717518706772,26.3965,168.67,168.61,120.0]
[1717518707291,26.3965,168.67,168.6,0.17]
[1717518707495,26.3965,168.67,168.58,122.3647]
[1717518707664,26.3965,168.67,168.59,0.17]
[1717518707863,2.1937,168.66,168.6,120.0]
[1717518708066,28.5902,168.67,168.61,0.17]
[1717518708486,20.27,168.67,168.62,120.0]
[1717518708681,20.27,168.67,168.63,2.534]
[1717518709568,20.27,168.7,168.65,2.1938]
[1717518709777,20.27,168.7,168.66,0.17]
[1717518710101,20.27,168.7,168.64,122.1939]
[1717518710392,20.27,168.7,168.63,2.5341]
[1717518710573,20.27,168.7,168.64,120.0]
[1717518710887,20.27,168.7,168.65,0.34]
[1717518711194,26.615,168.7,168.63,142.1941]
[1717518711371,26.615,168.7,168.64,0.17]
[1717518711571,26.615,168.7,168.64,2.3639]
[1717518712295,26.615,168.7,168.65,0.17]
[1717518712464,26.615,168.7,168.64,2.3639]
[1717518712892,6.345,168.7,168.64,2.3639]
[1717518713192,26.615,168.7,168.64,2.1939]
[1717518713690,20.27,168.7,168.66,122.1936]
[1717518713889,20.27,168.73,168.66,122.1936]
[1717518714578,20.27,168.73,168.65,2.5338]
[1717518714779,2.1931,168.71,168.64,120.0]
[1717518714982,2.1931,168.71,168.63,20.0]
[1717518715278,20.27,168.73,168.63,2.1941]
[1717518715485,29.1166,168.7,168.62,122.3642]
[1717518715677,29.1166,168.7,168.62,122.1942]
[1717518716389,29.1166,168.7,168.63,2.1941]
[1717518717270,26.9233,168.7,168.63,2.1941]
[1717518717498,29.1165,168.7,168.63,2.1941]
[1717518717795,29.1165,168.7,168.62,2.1942]
[1717518718000,2.1934,168.69,168.61,22.3643]
[1717518718296,29.1165,168.7,168.62,2.1941]
[1717518718803,29.1165,168.7,168.63,2.1941]
[1717518718997,29.1165,168.7,168.62,2.1942]
[1717518719201,2.1931,168.71,168.63,122.364]
[1717518719379,20.27,168.7,168.63,122.364]
[1717518719575,20.27,168.7,168.65,120.0]
[1717518720080,20.27,168.7,168.65,122.1938]
[1717518720397,20.27,168.7,168.64,2.3639]
[1717518721589,20.27,168.7,168.64,0.17]
[1717518721981,22.4632,168.7,168.63,2.3641]
[1717518722197,22.4632,168.7,168.62,22.1942]
[1717518722698,22.4632,168.7,168.63,2.1941]
[1717518723198,20.27,168.7,168.64,2.194]
[1717518723494,20.27,168.7,168.66,2.1937]
[1717518723674,20.27,168.7,168.65,122.1938]
[1717518723877,20.27,168.7,168.66,2.1936]
[1717518724091,20.27,168.7,168.65,120.0]
[1717518724289,20.27,168.7,168.67,120.0]
[1717518724603,26.3781,168.75,168.69,2.1933]
[1717518724807,6.1081,168.75,168.7,2.1932]
[1717518725385,6.1081,168.75,168.69,120.0]
[1717518725698,20.27,168.76,168.72,2.1929]
[1717518725894,6.1736,168.79,168.73,2.1928]
[1717518726398,6.75,168.74,168.73,2.1928]
[1717518726700,6.75,168.74,168.73,120.0]
[1717518726909,6.75,168.74,168.72,2.1929]
[1717518727082,6.75,168.74,168.71,122.363]
[1717518727282,8.3656,168.79,168.72,0.17]
[1717518727498,6.75,168.73,168.72,0.17]
[1717518727897,20.24,168.77,168.72,2.3629]
[1717518728703,20.24,168.77,168.73,2.1928]
[1717518728897,20.24,168.77,168.73,122.1928]
[1717518729104,20.24,168.8,168.75,120.0]
[1717518729293,20.24,168.83,168.76,2.1924]
[1717518729486,20.24,168.83,168.74,0.34]
[1717518729487,20.24,168.83,168.78,2.1921]
[1717518729801,20.24,168.83,168.77,120.0]
[1717518730797,20.24,168.83,168.79,120.0]
[1717518730993,20.24,168.83,168.79,122.192]
[1717518731295,20.24,168.83,168.8,2.1919]
[1717518731592,20.24,168.83,168.79,122.192]
[1717518732101,20.24,168.83,168.78,0.17]
[1717518732399,20.24,168.83,168.79,122.1919]
[1717518732601,20.24,168.83,168.79,120.0]
[1717518732793,20.24,168.83,168.81,120.0]
[1717518732989,20.24,168.86,168.81,122.1918]
[1717518733902,20.24,168.86,168.81,120.0]
[1717518734897,20.24,168.86,168.81,122.1917]
[1717518735102,20.24,168.86,168.81,120.0]
[1717518735286,20.24,168.86,168.82,2.3616]
[1717518737007,20.24,168.86,168.82,0.17]
[1717518737194,20.24,168.86,168.81,2.1918]
[1717518737387,20.24,168.86,168.81,122.1918]
[1717518737589,20.24,168.86,168.83,2.1915]
[1717518737908,20.24,168.86,168.83,122.1915]
[1717518738701,20.24,168.86,168.82,2.1916]
[1717518738904,20.24,168.86,168.83,120.0]
[1717518739202,20.24,168.86,168.83,122.1915]
[1717518739604,20.24,168.86,168.83,120.0]
[1717518739783,6.0412,168.88,168.83,122.1915]
[1717518739784,20.24,168.88,168.83,122.1915]
[1717518739987,20.24,168.88,168.84,122.1913]
[1717518740205,20.24,168.88,168.85,0.17]
[1717518741103,20.24,168.88,168.83,2.3615]
[1717518741309,20.24,168.88,168.8,140.0]
[1717518741515,20.24,168.88,168.82,2.1916]
[1717518741714,22.4309,168.88,168.82,2.1916]
[1717518742014,20.24,168.88,168.82,2.1916]
[1717518742188,20.24,168.88,168.8,140.0]
[1717518742387,20.24,168.85,168.79,2.192]
[1717518742598,20.24,168.85,168.8,122.1919]
[1717518742814,20.24,168.85,168.8,2.1919]
[1717518742986,26.5071,168.85,168.79,2.192]
[1717518743318,28.6984,168.85,168.79,2.192]
[1717518743611,26.5071,168.85,168.78,120.0]
[1717518743780,26.5071,168.85,168.81,2.1917]
[1717518744605,26.5071,168.85,168.8,122.1918]
[1717518744908,20.24,168.88,168.82,2.1916]
[1717518744909,22.4309,168.88,168.82,2.1916]
[1717518745210,22.4309,168.88,168.81,2.1917]
[1717518745807,2.191,168.87,168.81,2.1917]
[1717518746009,2.191,168.87,168.8,122.3618]
[1717518746182,20.24,168.87,168.82,120.0]
[1717518746387,2.1905,168.91,168.84,2.1913]
[1717518746711,2.1905,168.91,168.84,122.1913]
[1717518746712,20.24,168.89,168.84,122.1913]
[1717518746893,20.24,168.89,168.83,0.17]
[1717518746894,20.24,168.89,168.86,120.0]
[1717518747213,2.1903,168.92,168.88,2.1908]
[1717518747214,20.24,168.92,168.88,2.1908]
[1717518747711,20.24,168.92,168.88,122.1908]
[1717518747886,20.24,168.96,168.9,2.1906]
[1717518748089,20.24,168.96,168.89,2.1907]
[1717518748295,20.24,168.96,168.9,120.17]
[1717518748596,20.24,168.96,168.91,2.1904]
[1717518748896,20.24,168.96,168.92,120.0]
[1717518749093,6.2404,169.01,168.95,2.1899]
[1717518749302,20.24,169.0,168.94,122.1901]
[1717518749912,20.24,169.0,168.94,120.0]
[1717518750096,22.4293,169.0,168.93,2.3602]
[1717518750410,20.24,169.0,168.94,122.19]
[1717518751811,22.4293,169.0,168.93,2.3602]
[1717518752002,2.1894,168.99,168.93,0.17]
[1717518752410,22.4293,169.0,168.93,2.3602]
[1717518752594,22.4293,169.0,168.94,120.0]
[1717518753212,22.4293,169.0,168.93,2.3601]
[1717518753989,22.4293,169.0,168.93,0.17]
[1717518754187,2.1894,168.99,168.93,2.3602]
[1717518754798,20.24,168.97,168.93,0.17]
[1717518754998,20.24,168.97,168.92,2.1903]
[1717518755197,20.24,168.97,168.93,2.1902]
[1717518755417,20.24,168.97,168.94,2.19]
[1717518756215,26.62,169.01,168.96,2.1898]
[1717518756402,26.62,169.01,168.95,2.1899]
[1717518756596,28.8092,169.01,168.94,122.19]
[1717518756806,28.8092,169.01,168.94,2.19]
[1717518757009,28.8092,169.01,168.94,122.19]
[1717518757597,2.1893,169.0,168.94,122.19]
[1717518757919,28.8092,169.01,168.95,2.1899]
[1717518758121,28.8092,169.01,168.94,122.1901]
[1717518758317,28.8092,169.01,168.95,2.1899]
[1717518758612,28.8092,169.01,168.94,122.19]
[1717518758819,22.4296,168.98,168.91,22.1904]
[1717518759024,22.4296,168.98,168.92,2.1903]
[1717518759196,38.9801,168.98,168.91,22.1904]
[1717518759397,36.7905,168.98,168.92,2.1903]
[1717518760005,20.24,168.98,168.93,2.1902]
[1717518760714,20.24,168.98,168.91,2.1904]
[1717518760715,22.4296,168.98,168.91,2.1904]
[1717518761194,22.4296,168.98,168.91,122.1904]
[1717518761620,2.1897,168.97,168.91,122.1904]
[1717518761803,22.4297,168.97,168.91,2.1904]
[1717518762007,22.4297,168.97,168.9,2.3605]
[1717518762621,2.1899,168.95,168.9,0.17]
[1717518762799,2.1899,168.95,168.84,46.93162976]
[1717518762800,8.3663,168.99,168.91,120.0]
[1717518763011,2.1893,169.0,168.94,120.0]
[1717518763214,20.24,169.0,168.94,122.19]
[1717518763602,20.24,169.0,168.95,0.17]
[1717518763807,20.24,169.0,168.96,120.0]
[1717518764127,2.1892,169.01,168.96,120.0]
[1717518764128,6.73,168.97,168.96,120.0]
[1717518764506,6.73,168.97,168.95,0.17]
[1717518764808,6.73,168.96,168.95,0.17]
[1717518766022,22.3793,169.0,168.95,0.17]
[1717518766223,20.19,169.0,168.95,0.17]
[1717518766611,20.19,169.0,168.95,2.3599]
[1717518767728,20.19,169.0,168.95,0.17]
[1717518768926,20.19,169.0,168.95,2.3599]
[1717518770325,20.19,169.0,168.96,120.0]
[1717518770501,20.19,169.02,168.96,122.1897]
[1717518771605,2.1889,169.03,168.96,122.1897]
[1717518771933,20.19,169.02,168.96,122.1897]
[1717518777029,20.19,169.02,168.97,2.1897]
[1717518777716,22.379,169.02,168.96,120.0]
[1717518778423,22.379,169.02,168.96,122.1898]
[1717518779339,20.19,169.02,168.96,122.1898]
[1717518779632,22.3791,169.02,168.96,122.1898]
[1717518780127,20.19,169.02,168.97,2.1897]
[1717518780324,20.19,169.02,168.96,122.1898]
[1717518781240,20.19,169.02,168.97,2.1897]
[1717518781414,20.19,169.03,168.98,2.1895]
[1717518781618,20.19,169.03,168.98,122.1895]
[1717518781943,20.19,169.03,169.01,120.0]
[1717518782133,2.1883,169.08,169.01,120.0]
[1717518782439,22.3783,169.08,169.01,120.0]
[1717518783136,2.1884,169.07,169.01,122.1891]
[1717518783842,2.1884,169.07,169.0,2.3593]
[1717518784018,2.1884,169.07,169.01,2.1891]
[1717518784362,22.3783,169.08,169.02,2.189]
[1717518784515,20.19,169.08,169.01,120.0]
[1717518785141,22.3783,169.08,169.02,2.189]
[1717518785736,20.19,169.08,169.03,2.1889]
[1717518785923,6.72,169.04,169.03,2.1889]
[1717518786123,6.72,169.04,169.02,2.189]
[1717518786328,2.1882,169.09,169.01,120.0]
[1717518786329,2.1882,169.09,169.03,2.1889]
[1717518786544,6.72,169.04,169.02,2.189]
[1717518786722,2.1883,169.08,169.02,2.189]
[1717518786918,6.72,169.03,169.02,2.189]
[1717518790354,9.5670525,169.11,169.04,122.1887]
[1717518790562,6.72,169.05,169.02,124.3781]
[1717518790849,2.188,169.1,169.04,2.1887]
[1717518791026,6.72,169.05,169.04,2.1887]
[1717518791447,9.5670525,169.11,169.04,120.0]
[1717518791657,0.8368525,169.11,169.06,2.1885]
[1717518791825,6.72,169.07,169.06,2.1885]
[1717518792763,6.72,169.07,169.04,2.1887]
[1717518792926,6.72,169.05,169.01,2.1891]
[1717518793135,6.72,169.02,169.01,2.1891]
[1717518793442,6.72,169.02,168.98,122.1895]
[1717518793626,8.7524,169.1,169.02,2.189]
[1717518793823,2.1882,169.09,169.03,2.1888]
[1717518794033,6.72,169.04,169.03,2.1888]
[1717518794861,9.1872525,169.11,169.05,2.1886]
[1717518795036,6.72,169.06,169.05,2.1886]
[1717518795840,0.8368525,169.11,169.04,120.0]
[1717518796032,3.0247525,169.11,169.05,2.1886]
[1717518796335,6.72,169.06,169.04,122.1887]
[1717518796663,6.72,169.05,169.04,122.1887]
[1717518796968,0.8368525,169.11,169.06,2.1885]
[1717518797161,6.72,169.07,169.05,2.1886]
[1717518797337,6.72,169.06,169.05,2.1886]
[1717518797927,6.72,169.06,169.05,2.3586]
[1717518798332,6.72,169.06,169.04,122.1887]
[1717518798537,6.72,169.05,169.04,122.1887]
[1717518798740,6.72,169.05,169.04,122.3587]
[1717518799535,0.8368525,169.11,169.06,2.1885]
[1717518799851,6.72,169.07,169.05,2.1886]
[1717518800165,6.72,169.06,169.05,2.1886]
[1717518801152,0.8368525,169.11,169.09,122.1881]
[1717518801356,0.8368525,169.11,169.1,2.188]
[1717518801555,7.5568525,169.11,169.1,2.188]
[1717518801728,0.8368525,169.11,169.1,2.188]
[1717518801935,7.5568525,169.11,169.1,2.188]
[1717518802153,7.5568525,169.11,169.09,122.1881]
[1717518802531,7.5568525,169.11,169.1,2.188]
[1717518803355,0.8368525,169.11,169.1,2.188]
[1717518803559,7.5568525,169.11,169.1,2.188]
[1717518804636,0.8368525,169.11,169.1,2.188]
[1717518805158,7.5568525,169.11,169.1,2.528]
[1717518805550,6.3754,169.19,169.13,120.0]
[1717518805748,6.72,169.14,169.13,122.1876]
[1717518806755,6.72,169.14,169.13,2.1876]
[1717518807064,6.72,169.14,169.11,2.1878]
[1717518807240,6.72,169.12,169.11,2.1878]
[1717518808142,6.72,169.12,169.11,122.1878]
[1717518809470,2.187,169.18,169.12,2.1877]
[1717518809667,6.72,169.13,169.12,2.1877]
[1717518809867,6.72,169.13,169.1,0.17]
[1717518810038,6.72,169.11,169.05,4.3772]
[1717518810240,6.72,169.06,169.04,120.0]
[1717518810445,6.72,169.05,169.02,126.5344]
[1717518810669,2.188,169.1,169.04,2.1888]
[1717518810871,6.72,169.05,169.03,2.1889]
[1717518811170,26.88,169.12,169.03,2.1889]
[1717518811171,6.72,169.04,169.03,2.1889]
[1717518811572,6.6461,169.16,169.07,2.1883]
[1717518811762,6.6461,169.16,169.07,120.0]
[1717518811956,6.6461,169.16,169.08,120.0]
[1717518812157,2.187,169.19,169.12,2.1877]
[1717518812360,2.187,169.19,169.13,2.1876]
[1717518812547,6.2131,169.2,169.12,120.0]
[1717518812751,17.5739,169.22,169.15,2.1873]
[1717518812952,6.72,169.16,169.15,2.1873]
[1717518813350,6.72,169.16,169.14,2.1874]
[1717518813550,26.88,169.2,169.14,122.1874]
[1717518813551,6.72,169.15,169.14,122.1874]
[1717518813752,6.72,169.15,169.14,122.3574]
[1717518813953,6.72,169.15,169.14,0.17]
[1717518814167,6.72,169.15,169.12,122.1877]
[1717518814452,6.72,169.13,169.12,122.1877]
[1717518814680,6.72,169.13,169.1,122.1879]
[1717518814854,6.72,169.11,169.1,2.1879]
[1717518815180,6.72,169.11,169.1,122.188]
[1717518815378,29.0668,169.2,169.12,120.0]
[1717518815555,15.3874,169.22,169.15,2.1873]
[1717518815754,2.1867,169.21,169.14,122.1874]
[1717518815955,22.3267,169.21,169.14,122.1874]
[1717518817171,22.3267,169.21,169.14,120.0]
[1717518817377,22.3267,169.21,169.14,122.1874]
[1717518817874,22.3267,169.21,169.15,2.1873]
[1717518818770,6.535,169.24,169.16,120.0]
[1717518819076,20.14,169.22,169.16,120.0]
[1717518819962,20.14,169.22,169.16,122.1872]
[1717518820164,22.3265,169.22,169.16,122.1872]
[1717518820363,20.14,169.22,169.17,2.1871]
[1717518820881,22.3265,169.22,169.16,122.1872]
[1717518821379,20.14,169.22,169.16,122.1872]
[1717518821563,22.3265,169.22,169.16,122.1872]
[1717518822476,2.1866,169.21,169.16,120.0]
[1717518822867,2.1865,169.22,169.16,122.1872]
[1717518824275,2.1866,169.21,169.15,2.1873]
[1717518824494,2.1867,169.2,169.14,122.1874]
[1717518824658,2.1867,169.2,169.13,2.1875]
[1717518824659,2.1869,169.19,169.13,2.1875]
[1717518824859,20.13,169.17,169.12,122.1877]
[1717518825071,20.13,169.17,169.12,120.0]
[1717518825258,20.13,169.17,169.13,2.1875]
[1717518825967,20.13,169.17,169.15,2.1873]
[1717518826561,22.3168,169.2,169.15,2.1873]
[1717518826891,22.3168,169.2,169.14,122.1874]
[1717518827067,22.3168,169.2,169.14,2.1874]
[1717518827272,2.1869,169.19,169.14,2.1874]
[1717518828187,20.13,169.2,169.13,120.0]
[1717518828364,2.1869,169.19,169.14,2.1874]
[1717518828566,2.187,169.18,169.13,2.1876]
[1717518828764,6.10574495,169.19,169.14,2.1874]
[1717518828958,6.10574495,169.19,169.15,2.1874]
[1717518829155,6.10574495,169.19,169.14,2.1874]
[1717518829386,6.10574495,169.19,169.15,2.1874]
[1717518829890,6.10574495,169.19,169.16,2.1872]
[1717518830462,6.10574495,169.19,169.15,2.1873]
[1717518831185,6.10574495,169.19,169.15,122.1873]
[1717518831363,6.10574495,169.19,169.15,2.1873]
[1717518831981,6.10574495,169.19,169.14,2.1874]
[1717518832390,6.10574495,169.19,169.15,2.1874]
[1717518833188,6.10574495,169.19,169.14,2.1874]
[1717518833604,8.29264495,169.19,169.14,2.1874]
[1717518833887,2.187,169.18,169.13,2.1876]
[1717518834093,8.29264495,169.19,169.14,2.1875]
[1717518834277,8.29264495,169.19,169.12,4.3755]
[1717518834278,8.29264495,169.19,169.13,2.1875]
[1717518834471,8.29264495,169.19,169.14,2.1875]
[1717518835585,6.10574495,169.19,169.15,2.1874]
[1717518835783,6.10574495,169.19,169.16,2.1872]
[1717518835987,20.13,169.2,169.16,2.1872]
[1717518836805,22.3167,169.2,169.15,122.1873]
[1717518837296,22.3167,169.2,169.15,2.1873]
[1717518837872,6.71,169.16,169.15,2.1873]
[1717518840593,6.71,169.16,169.14,2.1874]
[1717518840794,6.71,169.15,169.14,2.1874]
[1717518841680,6.71,169.15,169.13,120.0]
[1717518841878,6.71,169.14,169.13,120.0]
[1717518842112,19.8208,169.14,169.07,120.0]
[1717518842288,6.71,169.12,169.09,2.1881]
[1717518842610,6.71,169.1,169.03,120.0]
[1717518842796,2.1882,169.09,169.04,2.1887]
[1717518844198,6.71,169.07,169.06,2.1885]
[1717518844917,6.71,169.07,169.04,2.1887]
[1717518845122,6.71,169.05,169.03,2.1889]
[1717518845406,6.71,169.04,169.03,2.1889]
[1717518845581,6.71,169.04,169.03,122.1889]
[1717518845978,26.6639,169.1,169.06,2.1885]
[1717518846170,26.6639,169.1,169.05,2.1886]
[1717518848074,26.6639,169.1,169.03,124.3779]
[1717518848271,26.6639,169.1,169.05,2.1886]
[1717518848497,20.16,169.1,169.05,2.1886]
[1717518848698,20.16,169.1,169.06,2.1885]
[1717518849309,28.9466,169.1,169.05,122.1886]
[1717518850379,20.16,169.1,169.06,2.1885]
[1717518851808,22.348,169.1,169.05,122.1886]
[1717518852046,21.9941,169.18,169.1,120.0]
[1717518852305,26.3108,169.18,169.11,4.3758]
[1717518852487,26.3108,169.18,169.13,2.1875]
[1717518852683,26.3108,169.18,169.14,2.1874]
[1717518853511,22.347,169.18,169.12,2.1877]
[1717518853723,22.347,169.18,169.1,20.0]
[1717518853724,20.16,169.18,169.1,20.0]